Cogmind - Beta 15 @@@ ROGUE MODE // 2025.07.10 @ 19:43:33 Player: Dingot Result: Destroyed by G-34 Mercenary with Small Laser Performance ------------- Evolutions (1) 500 Regions Visited (2) 400 Robots Destroyed (1) 5 Value Destroyed (34) 34 Prototype IDs (0) 0 Alien Tech Used (0) 0 Bonus (200) 200 TOTAL SCORE: 1139 Bonus ------- Pacifist 200 Cogmind --------- Core Integrity 0/400 Matter 152/300 Energy 100/100 System Corruption 0% Temperature Cool (6) Movement Core (50) Location -9/Materials Parts ------- > --- POWER (1) -------- (None) > --- PROPULSION (2) --- (None) > --- UTILITY (4) ------ (None) > --- WEAPON (2) ------- (None) > --- INVENTORY (5) ---- Cesium-ion Thruster Cesium-ion Thruster Peak State ------------ > --- POWER ------------ (None) > --- PROPULSION ------- Cesium-ion Thruster Cesium-ion Thruster > --- UTILITY ---------- Hardened Light Armor Plating Hardened Light Armor Plating > --- WEAPON ----------- (None) > --- INVENTORY -------- Cesium-ion Thruster Cesium-ion Thruster [Rating: 10] Favorites ----------- Power None Propulsion Cesium-ion Thruster Flight Unit Cesium-ion Thruster Utility Hardened Light Armor Plating Protection Hardened Light Armor Plating Weapon Improved Light Cannon Ballistic Cannon Improved Light Cannon Build | -11 -10 -9 ------- Run | Yrd Mat Mat Slots Evolved 2 | . . 2 Power . | . . . Propulsion . | . . . Utility 2 | . . 2 Weapon . | . . . Parts Attached 5 | . . 5 Power . | . . . Engine . | . . . Core . | . . . Reactor . | . . . Propulsion 2 | . . 2 Treads . | . . . Leg . | . . . Wheel . | . . . Hover . | . . . Flight 2 | . . 2 Utility 2 | . . 2 Device . | . . . Storage . | . . . Processor . | . . . Hackware . | . . . Protection 2 | . . 2 Artifact . | . . . Weapon 1 | . . 1 Energy Gun . | . . . Energy Cannon . | . . . Ballistic Gun . | . . . Ballistic Cannon 1 | . . 1 Launcher . | . . . Special Weapon . | . . . Impact Weapon . | . . . Slashing Weapon . | . . . Piercing Weapon . | . . . Special Melee Weapon . | . . . Unidentified Prototypes . | . . . Parts Lost 5 | . . 5 Power . | . . . Propulsion 2 | . . 2 Utility 2 | . . 2 Weapon 1 | . . 1 Highest Loss Streak 5 | . . 5 To Critical Strikes . | . . . Average Backups 1 | . . 1 Power . | . . . Propulsion 1 | . . 1 Utility . | . . . Weapon . | . . . Tool/Special . | . . . Unused Backups 2 | . . 2 Power . | . . . Propulsion 2 | . . 2 Utility . | . . . Weapon . | . . . Tool/Special . | . . . Average Slot Usage (%) 15 | . . 19 Flight 7 | . . 9 Protection 7 | . . 9 Peak Build Rating 10 | . . 10 Average Rating 3 | . . 5 On Entrance . | . . . Naked Turns 50 | . 27 23 Heaviest Build 10 | . . 10 Greatest Support 10 | 3 3 10 Greatest Overweight (x) 3 | . . 3 Average Overweight (x) . | . . . Largest Inventory Capacity 5 | 5 5 5 Average Capacity 5 | 5 5 5 Most Carried 3 | . . 3 Average Carried 1 | . . 2 Final Capacity 5 | 5 5 5 Final Carried 2 | . . 2 Class Distribution -------------------- 67% | Mutant 32% | Sprinter Dominant Class ---------------- Mutant | -10/Materials Mutant | -9/Materials Resources | -11 -10 -9 ----------- Run | Yrd Mat Mat Matter Collected 97 | 64 . 33 Remotely . | . . . Salvage Created 30 | . . 30 Parts 3 | . . 3 Haulers Intercepted . | . . . Recyclers Shooed . | . . . Parts Field Recycled . | . . . Retrieved Matter . | . . . Parts Self-Destructed . | . . . Prevented . | . . . Kills | -11 -10 -9 ------- Run | Yrd Mat Mat Combat Hostiles Destroyed 1 | . . 1 Cannons 1 | . . 1 Classes Destroyed 1 | . . 1 Grunt 1 | . . 1 Best Kill Streak 1 | . . 1 Combat Bots Only 1 | . . 1 Max Kills in Single Turn 1 | . . 1 Gunslinging . | . . . Exploded . | . . . Melee . | . . . Uniques/NPCs Destroyed . | . . . Combat | -11 -10 -9 -------- Run | Yrd Mat Mat Hostile Shots Fired 125 | . . 125 Missed 36 | . . 36 Hits 89 | . . 89 Melee 3 | . . 3 Projectile 86 | . . 86 Critical Strikes 1 | . . 1 Damage Taken 968 | . . 968 Core 408 | . . 408 Absorbed by Shields . | . . . Core Remaining (%) 100 | 100 100 . Volleys Fired 5 | . . 5 Largest 1 | . . 1 Hottest 33 | . . 33 Shots Fired 5 | . . 5 Gun . | . . . Cannon 5 | . . 5 Launcher . | . . . Special . | . . . Kinetic 5 | . . 5 Thermal . | . . . Explosive . | . . . Electromagnetic . | . . . Robot Hit Streak 1 | . . 1 Robot Miss Streak 2 | . . 2 Penetration Max . | . . . Secondary Targets . | . . . Shots Hit Robots 2 | . . 2 Core Hits 1 | . . 1 Critical Kills . | . . . Critical Parts Destroyed . | . . . Critical Strikes . | . . . Melee Attacks . | . . . Impact . | . . . Slashing . | . . . Piercing . | . . . Sneak Attacks . | . . . Combat Hostiles . | . . . Follow-up Attacks . | . . . Damage Inflicted 43 | . . 43 Guns . | . . . Cannons 43 | . . 43 Explosions . | . . . Melee . | . . . Ramming . | . . . Kinetic 43 | . . 43 Thermal . | . . . Explosive . | . . . Electromagnetic . | . . . Impact . | . . . Slashing . | . . . Piercing . | . . . Highest Corruption . | . . . Average Corruption . | . . . Corruption Purged . | . . . Corruption Blocked . | . . . Overload Shots . | . . . Overflow Damage . | . . . Projectiles . | . . . Explosions . | . . . Melee . | . . . Knockbacks 1 | . . 1 Impact . | . . . Kinetic 1 | . . 1 Secondary . | . . . Self-Inflicted Damage . | . . . Shots . | . . . Rammed . | . . . Targets Rammed . | . . . Kicked . | . . . Crushed . | . . . Highest Temperature 4 | . . 4 Average Temperature 3 | . . 3 Received Heat Transfer 255 | . . 255 Siege Activations . | . . . Martial Activations . | . . . Shielding Activations . | . . . Robots Disrupted . | . . . Combat Hostiles . | . . . Robots Corrupted . | . . . Combat Hostiles . | . . . Parts Fried . | . . . Impact Corruptions . | . . . Robots Melted . | . . . Combat Hostiles . | . . . Parts Melted . | . . . Heat Transferred . | . . . Parts Sabotaged . | . . . Parts Stolen . | . . . Parts Stripped . | . . . Power Chain Reactions . | . . . Alert | -11 -10 -9 ------- Run | Yrd Mat Mat Maximum Alert Level . | . . . Low Security (%) 100 | 100 100 100 Level 1 . | . . . Level 2 . | . . . Level 3 . | . . . Level 4 . | . . . Level 5 . | . . . High Security . | . . . Max Security . | . . . Peak Influence 91 | . . 91 Initial . | . . . Average 32 | . . 42 Influence Increases 171 | . . 171 Destroy 0b10 Robot/C 20 | . . 20 Destroy Structure 1 | . . 1 Lose Combat Pursuer 150 | . . 150 Influence Decreases 80 | . . 80 Time Decay 30 | . . 30 Lost Part 50 | . . 50 Squads Dispatched 2 | . . 2 Investigation . | . . . Extermination . | . . . Reinforcement 2 | . . 2 Assault . | . . . Garrison . | . . . Intercept . | . . . Searches Triggered . | . . . Construction Impeded . | . . . Haulers Reinforced . | . . . Active Scanning Responses . | . . . Cargo Convoy Interrupts . | . . . Stealth | -11 -10 -9 --------- Run | Yrd Mat Mat Distress Signals 3 | . . 3 Communications Jammed . | . . . Distress Signals . | . . . Times Spotted 23 | . . 23 Peak Tracking Total 17 | . . 17 Tactical Retreats 3 | . . 3 Traps | -11 -10 -9 ------- Run | Yrd Mat Mat Traps Triggered . | . . . Indirectly . | . . . Trap Hack Attempts . | . . . Triggered . | . . . Disarmed . | . . . Reprogrammed . | . . . Reused . | . . . Traps Extracted . | . . . Installed . | . . . Triggered . | . . . Machines | -11 -10 -9 ---------- Run | Yrd Mat Mat Machines Disabled . | . . . Max in Single Turn . | . . . Machines Repaired . | . . . Machines Dismantled . | . . . Machines Sabotaged . | . . . Overloaded Fab Kills . | . . . Hacking | -11 -10 -9 --------- Run | Yrd Mat Mat Machines Accessed 2 | . . 2 Terminals 2 | . . 2 Fabricators . | . . . Repair Stations . | . . . Recycling Units . | . . . Scanalyzers . | . . . Garrison Access . | . . . Total Hacks 3 | . . 3 Successful 1 | . . 1 Failed 2 | . . 2 Catastrophic 1 | . . 1 Database Lockouts . | . . . Manual 1 | . . 1 Terminals 3 | . . 3 Fabricators . | . . . Repair Stations . | . . . Recycling Units . | . . . Scanalyzers . | . . . Garrison Access . | . . . Terminal Hacks 1 | . . 1 Zone Layout 1 | . . 1 Fabricator Hacks . | . . . Repair Station Hacks . | . . . Recycling Unit Hacks . | . . . Scanalyzer . | . . . Garrison Access Hacks . | . . . Unauthorized Hacks . | . . . Terminals . | . . . Fabricators . | . . . Repair Stations . | . . . Recycling Units . | . . . Scanalyzers . | . . . Garrison Access . | . . . Data Cores Recovered . | . . . Used . | . . . Hacking Detections 1 | . . 1 Full Trace Events . | . . . Feedback Events . | . . . Feedback Blocked . | . . . Robot Schematics Acquired . | . . . Robots Built . | . . . Authchips . | . . . Time . | . . . Total Robot Build Rating . | . . . Part Schematics Acquired . | . . . Parts Built . | . . . Authchips . | . . . Time . | . . . Total Part Build Rating . | . . . Parts Repaired . | . . . Time . | . . . Parts Recycled . | . . . Recycled Matter . | . . . Retrieved Matter . | . . . Retrieved Components . | . . . Parts Scanalyzed . | . . . Part Schematics Acquired . | . . . Parts Damaged . | . . . Bothacking | -11 -10 -9 ------------ Run | Yrd Mat Mat Used RIF Installer . | . . . Robots Hacked . | . . . Non-combat . | . . . Combat . | . . . Robot Hacks Applied . | . . . Relay Couplers Released . | . . . Fabnet Peak Effective % . | . . . Robots Rewired . | . . . Allies Hacked . | . . . Hacks Repelled . | . . . Allies | -11 -10 -9 -------- Run | Yrd Mat Mat Total Allies . | . . . Largest Group . | . . . Highest-Rated Group . | . . . Highest-Rated Ally . | . . . Total Orders . | . . . Ally Attacks . | . . . Total Damage . | . . . Kills . | . . . Allies Corrupted . | . . . Allies Melted . | . . . Intel | -11 -10 -9 ------- Run | Yrd Mat Mat Active Infowar (turns) . | . . . Robot Analysis Total . | . . . Derelict Logs Recovered . | . . . Drone Launches . | . . . Drone Recoveries . | . . . Exploration | -11 -10 -9 ------------- Run | Yrd Mat Mat Turns Passed 145 | 9 27 109 Spaces Moved 229 | 18 53 158 Core 90 | 18 53 19 Treads . | . . . Legs . | . . . Wheels . | . . . Hover . | . . . Flight 139 | . . 139 Fastest Speed 32 | 50 50 32 Average Speed 43 | 50 50 41 Slowest Speed 200 | 50 50 200 Overloaded Moves . | . . . Propulsion Burnouts . | . . . Robots Hopped . | . . . Potential Cave-ins . | . . . Cave-ins Triggered . | . . . Exploration Rate (%) 15 | 3 12 31 Regions Visited 2 Branch Regions . Pre-discovered Areas . | . . . Known Exits Taken . | . . . Unknown Exits Taken 2 | 1 1 . Scrap Searched . | . . . Spaces Dug . | . . . Terrain Destroyed 1 | . . 1 Melee . | . . . Projectile 1 | . . 1 AOE . | . . . Terrain Rammed . | . . . Walls Destroyed . | . . . Machines Disabled . | . . . Actions | -11 -10 -9 --------- Run | Yrd Mat Mat Total 266 | 17 52 197 Wait 22 | . . 22 Move 227 | 17 52 158 Hop . | . . . Pick Up 7 | . . 7 Fast Attach . | . . . Attach 5 | . . 5 Detach . | . . . Swap . | . . . Drop . | . . . Fire 5 | . . 5 Melee . | . . . Ram . | . . . Kick . | . . . Crush . | . . . Escape Stasis . | . . . Rewire . | . . . Trap . | . . . Miscellaneous . | . . . Route ------- -11/Scrapyard -10/Materials -9/Materials History --------- Turn | Location | Event 5 | -11/Scrapyard | Discovered new exit (range 12) 10 | -11/Scrapyard | Entered Materials 31 | -10/Materials | Discovered new exit (range 7) 37 | -10/Materials | Entered another Materials area 37 | -9/Materials | Evolved 2 slots: Utility x2 114 | -9/Materials | Core integrity fell below 50% 135 | -9/Materials | Core integrity fell below 20% 146 | -9/Materials | Destroyed by G-34 Mercenary with Small Laser Last Messages --------------- 00079_ W-16 Scout sends out distress signal. 00081_ K-01 Serf collects debris. 00091_ Acquired Imp. Light Cannon. 00093_ ALERT: Hostiles spotted, dispatching reinforcements to Terminal M012. 00094_ Connecting with Terminal... 00096_ Cesium-ion Thruster destroyed. 00112_ Hrd. Light Armor Plating destroyed. 00113_ Critical hit (Burn: +37). 00115_ G-34 Mercenary destroyed. 00116_ Hrd. Light Armor Plating destroyed. 00117_ K-01 Serf collects debris. 00117_ Acquired 30 matter. 00119_ Acquired 3 matter. 00120_ S-10 Pest destroyed. 00122_ K-01 Serf collects debris. 00123_ G-34 Mercenary knocked back. 00128_ M-13 Machinist repairs B-36 Bruiser. 00129_ R-06 Scavenger collects Flight Unit. 00129_ Imp. Light Cannon destroyed. Map ----- +----------------------------------------------------+ | | | | | ???????????????????????????????????????????? | | ???????????????????????????????????????????? | | ???????????????????????????????????????????? | | ???????????????????????????????????????????? | | ???????????????????????????????????????????? | | ???????????????????????????????????????????? | | ???????????????????????????????????????????? | | ???????????????????????????????????????????? | | ???????????????????????????????????????????? | | ???????????????????????????????????????????? | | ???????????????????????????????????????????? | | ???????????????????????????????????????????? | | ???????????????????????????????????????????? | | ????????????????????????????????????? # | | ????????????????????????????????????? # | | ?????????????????? ?????????????????? # | | ?????????????????? ?????????????????? # | | ?????????????????? ?????????????????+ # | | ?????????????????#+#????????????????# # | | ?????????????????# #????????????????# # | | ?????????????????# #????????????????# # | | ?????????????????# #????????????????# # | | ?????????????????#g##????????? ?????# # | | ?????????????????# @#???###???? ????# # | | ??????????######?#s###### #### ? ???? # | | ??????????# !! #?#Y## T # ???###+### | | ??????????# !! #?#=## = # ??# # | | ??????????# ! ### ## # ## | | ??????????# ##[= # [[ # ! / | | ??????????# ## [# [[ #???????# | | ??????????# + =%# [ #???????# | | ??????????# ## / #???????# " | | ??????????# ## # ######### "" | | ??????????# ## # / "" | | ?????????####/### ############## "" | | ?????????# #????????????# " | | ?????????+ +????????????###+## | | ?????????# " #???????????????? # | | ?????????## T #???????????????? # | | ??????????# " %#???????????????? + | | ??????????# #???????????????? # | | ??????????# #???????????????? ##/### | | ??????????# #???????????????? # | | ??????????# #???????????????? # "T" | | ??????????##+#### #?????????????????? ""?? | | ????????????????# #?????????????????? ?? | | ????????????????# #??????????????????#???? | | ????????????????? #??????????????????????? | +----------------------------------------------------+ Best States ------------- Heat Dissipation 28 Energy Generation 5 Energy Capacity 100 Matter Stores 164 Matter Capacity 300 Sight Range 16 Terrain Scan Density 10 Armor Coverage 300 Evasion (%) 63 Item Schematics ----------------- None Robot Schematics ------------------ None Fabricated ------------ Nothing Repaired ---------- Nothing Alien Tech Used ----------------- None Achievements -------------- None Challenges ------------ None Game ------ Seed LayeredStormMinigun Manual? 0 Play Time 00:06:53 Cumulative 17.9 hours Start 2025.07.10 @ 19:39:43 End 2025.07.10 @ 19:43:33 Sessions 1 Manual Loads 0 Difficulty Rogue Special Mode None Game No. 18 Rogue 18 Adventurer 0 Explorer 0 Win Type - Total 0 Types 0/0/0/0/0/0/0/0/0/0 Lore% 17 Gallery% 18 Achievement% 24 Wizard Run 0 Options --------- Layout 1 ASCII 0 Keyboard 0 Movement Mouse Keybinds 0 Fullscreen 1 Font 24/Smallcaps Map View 50x35 Zoom Use 0% Tactical HUD 1 Map Filters NONE Filters NONE Steam 1 RUN: 53255a58-3315-4e9d-a44c-72104263bee2